bitfinex/quotes_SOLUSD_20241225
["timestamp","ask_amount","ask_price","bid_price","bid_amount"]
[1735165458762,1.5918,196.33,196.28,10.02176973]
[1735165462903,0.76559567,196.34,196.28,10.02176973]
[1735165463195,7.87955096,196.4,196.33,10.02176973]
[1735165463575,0.76559567,196.39,196.33,10.02176973]
[1735165463774,0.76559567,196.39,196.32,10.02176973]
[1735165464293,0.76559567,196.41,196.32,10.02176973]
[1735165464810,20.0,196.39,196.32,10.02176973]
[1735165465183,0.76559567,196.41,196.32,10.02176973]
[1735165465603,0.76559567,196.41,196.34,10.02176973]
[1735165465822,10.7873654,196.42,196.34,10.02176973]
[1735165465991,10.02176973,196.42,196.34,10.02176973]
[1735165466312,1.5918,196.43,196.36,10.02176973]
[1735165466479,2.35739567,196.43,196.36,10.02176973]
[1735165467203,0.76559567,196.47,196.4,10.02176973]
[1735165467903,10.02176973,196.46,196.38,10.02176973]
[1735165468105,0.76559567,196.45,196.38,10.02176973]
[1735165468786,0.76559567,196.45,196.34,30.0]
[1735165468979,0.12549,196.43,196.32,31.5821]
[1735165469179,10.02176973,196.42,196.34,10.02176973]
[1735165469380,0.76559567,196.41,196.34,10.02176973]
[1735165471299,33.92414373,196.4,196.32,10.02176973]
[1735165471484,0.76559567,196.39,196.3,10.02176973]
[1735165471892,10.02176973,196.38,196.3,10.02176973]
[1735165472109,0.76559567,196.37,196.3,10.02176973]
[1735165477218,20.76559567,196.37,196.3,10.02176973]
[1735165477408,0.76559567,196.37,196.3,10.02176973]
[1735165478305,0.76559567,196.37,196.26,6.85823336]
[1735165478621,23.902374,196.36,196.29,10.02176973]
[1735165478820,0.76559567,196.35,196.29,10.02176973]
[1735165480123,10.7873654,196.35,196.27,10.02176973]
[1735165481616,0.76559567,196.35,196.27,10.02176973]
[1735165482309,33.92414373,196.34,196.27,10.02176973]
[1735165482494,0.76559567,196.33,196.27,10.02176973]
[1735165494138,23.776884,196.32,196.27,10.02176973]
[1735165494427,0.76559567,196.31,196.27,10.02176973]
[1735165494734,0.76559567,196.31,196.25,10.02176973]
[1735165496830,23.776884,196.3,196.2,30.0]
[1735165497008,0.76559567,196.29,196.2,30.0]
[1735165497327,0.76559567,196.29,196.22,10.02176973]
[1735165500137,23.776884,196.28,196.22,10.02176973]
[1735165500302,0.76559567,196.27,196.22,10.02176973]
[1735165500628,24.54247967,196.29,196.2,30.0]
[1735165500831,23.776884,196.27,196.2,10.02176973]
[1735165501020,0.76559567,196.26,196.18,30.0]
[1735165501346,20.0,196.26,196.21,10.02176973]
[1735165501509,0.76559567,196.27,196.22,10.02176973]
[1735165501709,20.76559567,196.29,196.23,10.02176973]
[1735165502246,20.0,196.28,196.23,10.02176973]
[1735165502412,20.76559567,196.29,196.23,10.02176973]
[1735165502810,30.7873654,196.29,196.18,30.0]
[1735165503107,20.76559567,196.29,196.22,10.02176973]
[1735165503311,23.776884,196.3,196.22,10.02176973]
[1735165503737,0.76559567,196.29,196.22,10.02176973]
[1735165503924,23.776884,196.3,196.22,10.02176973]
[1735165503925,24.54247967,196.3,196.22,10.02176973]
[1735165504325,0.76559567,196.3,196.22,10.02176973]
[1735165504639,12.4026654,196.31,196.24,10.02176973]
[1735165505139,11.63706973,196.31,196.24,10.02176973]
[1735165505532,1.6153,196.31,196.24,10.02176973]
[1735165509752,2.38089567,196.31,196.24,10.02176973]
[1735165510453,2.38089567,196.31,196.21,30.0]
[1735165510639,2.38089567,196.31,196.24,10.02176973]
[1735165513063,23.776884,196.3,196.19,36.306]
[1735165513361,0.76559567,196.29,196.21,10.02176973]
[1735165514732,10.7873654,196.29,196.21,10.02176973]
[1735165519861,0.76559567,196.29,196.23,10.02176973]
[1735165520070,1.6153,196.31,196.25,10.02176973]
[1735165520558,1.6153,196.31,196.25,40.02176973]
[1735165523733,10.7873654,196.35,196.27,10.02176973]
[1735165523734,20.0,196.33,196.27,10.02176973]
[1735165527342,20.0,196.33,196.28,30.0]
[1735165527541,1.6592,196.35,196.29,10.02176973]
[1735165527838,1.6592,196.35,196.31,10.02176973]
[1735165530557,1.6592,196.35,196.3,30.0]
[1735165530742,1.6592,196.35,196.3,40.02176973]
[1735165530944,1.6592,196.35,196.3,10.02176973]
[1735165533354,20.0,196.36,196.31,30.0]
[1735165533563,10.7873654,196.39,196.32,10.02176973]
[1735165533761,10.02176973,196.39,196.32,10.02176973]
[1735165534061,2.36129567,196.4,196.32,10.02176973]
[1735165535645,2.36129567,196.4,196.33,30.0]
[1735165535848,1.5957,196.4,196.34,10.02176973]
[1735165536056,6.4429,196.42,196.34,10.02176973]
[1735165536546,10.02176973,196.43,196.34,10.02176973]
[1735165536746,10.7873654,196.43,196.34,10.02176973]
[1735165537581,10.7873654,196.43,196.36,30.0]
[1735165537754,20.0,196.43,196.36,40.02176973]
[1735165537956,2.36129567,196.44,196.36,40.02176973]
[1735165537957,12.3830654,196.44,196.36,40.02176973]
[1735165538659,11.61746973,196.44,196.36,40.02176973]
[1735165538859,11.61746973,196.44,196.36,30.0]
[1735165539061,11.61746973,196.44,196.36,40.02176973]
[1735165540285,11.61746973,196.44,196.36,10.02176973]
[1735165548159,1.5957,196.44,196.36,10.02176973]
[1735165548590,11.61746973,196.44,196.36,10.02176973]
[1735165548882,30.02176973,196.47,196.39,30.0]
[1735165549263,30.02176973,196.47,196.4,10.02176973]
[1735165549989,20.0,196.47,196.4,10.02176973]
[1735165553486,20.0,196.47,196.41,30.0]
[1735165553689,12.2969654,196.49,196.41,30.0]
[1735165553873,10.7873654,196.49,196.41,30.0]
[1735165554075,10.02176973,196.49,196.41,30.0]
[1735165554390,10.02176973,196.5,196.41,30.0]
[1735165556976,0.76559567,196.49,196.41,30.0]
[1735165557182,10.02176973,196.5,196.41,30.0]
[1735165557893,0.76559567,196.49,196.41,30.0]
[1735165559770,10.02176973,196.5,196.41,30.0]
[1735165560194,0.76559567,196.49,196.41,30.0]
[1735165560494,0.76559567,196.49,196.4,10.02176973]
[1735165561006,10.02176973,196.48,196.39,11.61006973]
[1735165561191,0.76559567,196.47,196.39,11.61006973]
[1735165568372,0.76559567,196.47,196.39,41.61006973]
[1735165570001,10.02176973,196.48,196.39,41.61006973]
[1735165570298,0.76559567,196.47,196.39,41.61006973]
[1735165581805,20.0,196.5,196.41,40.02176973]
[1735165582146,20.0,196.48,196.41,40.02176973]
[1735165583827,20.0,196.5,196.41,40.02176973]
[1735165584120,30.02176973,196.5,196.41,40.02176973]
[1735165585926,0.76559567,196.49,196.41,40.02176973]
[1735165587023,30.02176973,196.5,196.41,40.02176973]
[1735165587519,0.76559567,196.49,196.41,10.02176973]
[1735165589522,10.02176973,196.48,196.39,41.61006973]
[1735165591727,0.76559567,196.49,196.39,41.61006973]
[1735165591931,10.02176973,196.48,196.39,41.61006973]
[1735165596128,0.76559567,196.49,196.41,10.02176973]
[1735165596323,0.76559567,196.49,196.43,30.0]
[1735165596530,20.0,196.5,196.43,40.02176973]
[1735165596827,20.0,196.5,196.43,46.37366973]
[1735165597328,20.0,196.5,196.43,36.3519]
[1735165597527,10.02176973,196.51,196.43,6.3519]
[1735165597700,0.76559567,196.5,196.43,6.3519]
[1735165598828,10.02176973,196.51,196.43,6.3519]
[1735165599434,0.76559567,196.5,196.43,6.3519]
[1735165599826,10.02176973,196.51,196.43,6.3519]
[1735165600327,10.02176973,196.51,196.43,36.3519]
[1735165604908,30.02176973,196.51,196.43,36.3519]
[1735165605111,30.02176973,196.51,196.43,46.37366973]
[1735165605432,0.76559567,196.5,196.43,46.37366973]
[1735165605728,30.02176973,196.51,196.43,46.37366973]
[1735165607228,0.76559567,196.5,196.43,46.37366973]
[1735165607418,30.02176973,196.51,196.43,46.37366973]
[1735165611537,0.76559567,196.5,196.43,46.37366973]
[1735165611737,30.02176973,196.51,196.43,46.37366973]
[1735165612420,30.02176973,196.51,196.44,1.5846]
[1735165613433,20.0,196.51,196.45,30.0]
[1735165613643,30.02176973,196.53,196.45,40.02176973]
[1735165614139,10.02176973,196.53,196.45,40.02176973]
[1735165618735,0.76559567,196.52,196.45,10.02176973]
[1735165619031,10.02176973,196.51,196.44,1.5846]
[1735165622744,20.0,196.52,196.44,1.5846]
[1735165622925,10.7873654,196.53,196.44,1.5846]
[1735165623243,10.7873654,196.53,196.45,10.02176973]
[1735165628548,0.76559567,196.53,196.45,10.02176973]
[1735165628721,10.7873654,196.53,196.45,10.02176973]
[1735165629047,20.0,196.53,196.45,40.02176973]
[1735165629235,30.02176973,196.53,196.45,40.02176973]
[1735165635145,20.0,196.53,196.45,40.02176973]
[1735165635446,30.02176973,196.53,196.45,40.02176973]
[1735165643252,0.76559567,196.52,196.44,1.5846]
[1735165680481,27.87955096,196.53,196.46,30.0]
[1735165681591,20.0,196.53,196.46,30.0]
[1735165683463,20.0,196.53,196.45,22.74756973]
[1735165684765,0.76559567,196.54,196.46,30.0]
[1735165684966,10.7873654,196.55,196.46,30.0]
[1735165687991,0.76559567,196.55,196.47,10.02176973]
[1735165688166,7.87955096,196.57,196.5,1.5246]
[1735165688780,7.87955096,196.57,196.51,30.0]
[1735165689095,10.02176973,196.58,196.51,30.0]
[1735165690499,20.0,196.58,196.51,30.0]
[1735165690998,10.02176973,196.59,196.51,30.0]
[1735165691196,0.76559567,196.58,196.51,30.0]
[1735165693391,10.02176973,196.59,196.51,30.0]
[1735165693870,0.76559567,196.58,196.51,30.0]
[1735165695398,10.02176973,196.59,196.51,30.0]
[1735165696200,0.76559567,196.58,196.51,30.0]
[1735165697097,10.02176973,196.59,196.51,30.0]
[1735165697305,0.76559567,196.58,196.51,30.0]
[1735165697602,10.02176973,196.59,196.51,30.0]
[1735165697795,0.76559567,196.58,196.51,30.0]
[1735165698778,10.02176973,196.59,196.51,30.0]
[1735165699887,20.0,196.6,196.51,30.0]
[1735165700199,10.7873654,196.59,196.51,30.0]
[1735165700371,10.7873654,196.59,196.51,40.02176973]
[1735165705893,0.76559567,196.59,196.51,40.02176973]
[1735165706084,0.76559567,196.6,196.51,40.02176973]
[1735165706285,10.7873654,196.6,196.51,40.02176973]
[1735165709915,0.76559567,196.6,196.51,40.02176973]
[1735165710204,10.02176973,196.6,196.51,40.02176973]
[1735165710411,0.76559567,196.59,196.51,40.02176973]
[1735165720302,0.76559567,196.63,196.57,10.02176973]
[1735165720511,0.76559567,196.64,196.57,10.02176973]
[1735165727013,0.76559567,196.64,196.57,16.52386973]
[1735165735222,0.76559567,196.64,196.57,6.5021]
[1735165735804,10.02176973,196.63,196.57,6.5021]
[1735165736322,0.76559567,196.62,196.57,6.5021]
[1735165736517,10.02176973,196.63,196.57,6.5021]
[1735165740031,10.02176973,196.65,196.57,46.52386973]
[1735165740210,0.76559567,196.64,196.57,16.52386973]
[1735165743415,10.02176973,196.64,196.57,16.52386973]
[1735165743617,0.76559567,196.63,196.57,16.52386973]
[1735165746840,0.76559567,196.63,196.57,6.5021]
[1735165748608,10.02176973,196.61,196.56,1.6334]
[1735165748807,0.76559567,196.6,196.56,1.6334]
[1735165751026,0.76559567,196.62,196.56,1.6334]
[1735165751331,10.02176973,196.64,196.56,1.6334]
[1735165751533,0.76559567,196.63,196.56,1.6334]
[1735165754233,0.76559567,196.63,196.56,11.65516973]
[1735165757637,0.76559567,196.63,196.56,1.6334]
[1735165759111,20.0,196.64,196.56,11.65516973]
[1735165759412,20.0,196.64,196.57,30.0]
[1735165760444,20.0,196.64,196.56,11.65516973]
[1735165760619,0.76559567,196.63,196.56,11.65516973]
[1735165761135,20.0,196.64,196.56,11.65516973]
[1735165761647,0.76559567,196.63,196.56,11.65516973]
[1735165762624,0.76559567,196.65,196.56,11.65516973]
[1735165764050,20.76559567,196.65,196.56,11.65516973]
[1735165765851,20.76559567,196.65,196.57,30.0]
[1735165766226,20.76559567,196.65,196.56,11.65516973]
[1735165766526,20.76559567,196.65,196.57,36.3441]
[1735165773922,30.7873654,196.65,196.57,36.3441]
[1735165776252,30.7873654,196.65,196.58,10.02176973]
[1735165776253,20.76559567,196.65,196.58,10.02176973]
[1735165780690,0.76559567,196.65,196.58,10.02176973]
[1735165780975,0.76559567,196.66,196.58,10.02176973]
[1735165789387,10.7873654,196.66,196.58,10.02176973]
[1735165790689,0.76559567,196.66,196.58,10.02176973]
[1735165790899,10.7873654,196.66,196.58,10.02176973]
[1735165795190,10.02176973,196.65,196.58,10.02176973]
[1735165800393,10.7873654,196.66,196.59,11.61866973]
[1735165800597,30.02176973,196.68,196.61,40.02176973]
[1735165800974,0.76559567,196.67,196.61,10.02176973]
[1735165801777,30.02176973,196.68,196.61,10.02176973]
[1735165802109,10.7873654,196.67,196.61,10.02176973]
[1735165802283,10.7873654,196.67,196.6,10.02176973]
[1735165802476,0.76559567,196.67,196.6,10.02176973]
[1735165811892,0.76559567,196.67,196.59,41.61866973]
[1735165813245,10.7873654,196.7,196.62,30.0]
[1735165813628,10.7873654,196.7,196.63,10.02176973]
[1735165816544,0.76559567,196.7,196.63,10.02176973]
[1735165816747,10.7873654,196.71,196.63,10.02176973]
[1735165817644,0.76559567,196.71,196.63,10.02176973]
[1735165817847,10.02176973,196.7,196.63,10.02176973]
[1735165818859,0.76559567,196.71,196.63,10.02176973]
[1735165819047,0.76559567,196.72,196.65,10.02176973]
[1735165819354,0.76559567,196.73,196.66,30.0]
[1735165820339,7.87955096,196.76,196.69,30.0]
[1735165820541,17.90132069,196.76,196.69,30.0]
[1735165820957,7.87955096,196.76,196.69,30.0]
[1735165821157,10.7873654,196.77,196.69,30.0]
[1735165821349,0.76559567,196.77,196.69,40.02176973]
[1735165821564,10.02176973,196.78,196.69,40.02176973]
[1735165821747,10.02176973,196.78,196.69,41.54286973]
[1735165822947,10.7873654,196.78,196.69,41.54286973]
[1735165824163,0.76559567,196.78,196.69,31.5211]
[1735165824468,10.7873654,196.78,196.7,10.02176973]
[1735165824851,0.76559567,196.78,196.71,30.0]
[1735165825060,0.76559567,196.79,196.72,10.02176973]
[1735165825266,10.02176973,196.8,196.71,30.0]
[1735165825448,20.76559567,196.82,196.73,30.0]
[1735165825648,10.02176973,196.81,196.71,30.0]
[1735165825867,0.76559567,196.8,196.71,30.0]
[1735165826086,0.76559567,196.8,196.73,10.02176973]
[1735165826538,10.02176973,196.81,196.73,10.02176973]
[1735165826741,0.76559567,196.8,196.71,30.0]
[1735165827180,10.02176973,196.81,196.72,10.02176973]
[1735165827396,0.76559567,196.8,196.73,30.0]
[1735165827990,0.76559567,196.8,196.72,10.02176973]
[1735165828681,0.76559567,196.8,196.73,30.0]
[1735165830189,0.76559567,196.81,196.73,30.0]
[1735165830400,10.7873654,196.81,196.73,30.0]
[1735165833098,0.76559567,196.81,196.73,30.0]
[1735165834608,10.7873654,196.82,196.73,30.0]
[1735165834808,20.0,196.84,196.75,30.0]
[1735165835000,0.76559567,196.83,196.75,30.0]
[1735165835485,0.76559567,196.83,196.76,10.02176973]
[1735165835808,0.76559567,196.86,196.78,30.0]
[1735165836006,10.02176973,196.85,196.78,30.0]
[1735165836215,0.76559567,196.84,196.76,40.02176973]
[1735165838089,0.76559567,196.84,196.76,10.02176973]
[1735165839481,0.76559567,196.84,196.76,40.02176973]
[1735165839688,23.776884,196.85,196.76,40.02176973]
[1735165839985,0.76559567,196.84,196.76,40.02176973]
[1735165840203,0.76559567,196.84,196.76,30.0]
[1735165840817,0.76559567,196.85,196.76,40.02176973]
[1735165841128,10.7873654,196.85,196.76,30.0]
[1735165841422,10.02176973,196.83,196.75,1.5235]
[1735165841589,0.76559567,196.82,196.75,1.5235]
[1735165841997,10.02176973,196.83,196.75,11.54526973]
[1735165842207,0.76559567,196.82,196.75,1.5235]
[1735165842437,33.79865373,196.77,196.66,36.5963]
[1735165842740,10.02176973,196.73,196.66,30.0]
[1735165842943,10.02176973,196.71,196.64,1.5235]
[1735165843146,0.76559567,196.72,196.66,10.02176973]
[1735165843329,2.39259567,196.77,196.67,30.0]
[1735165843648,12.4143654,196.77,196.69,40.02176973]
[1735165843956,2.39259567,196.77,196.67,30.0]
[1735165844134,2.39259567,196.77,196.67,40.02176973]
[1735165844444,10.02176973,196.75,196.65,30.0]
[1735165844623,10.02176973,196.73,196.64,1.5235]
[1735165844942,0.76559567,196.72,196.65,10.02176973]
[1735165845111,0.76559567,196.74,196.66,30.0]
[1735165845316,10.02176973,196.72,196.64,31.5235]
[1735165845517,10.02176973,196.72,196.64,30.0]
[1735165845753,0.76559567,196.75,196.67,30.0]
[1735165845919,10.02176973,196.76,196.65,30.0]
[1735165846120,0.76559567,196.75,196.67,10.02176973]
[1735165846738,1.627,196.77,196.67,40.02176973]
[1735165846934,0.76559567,196.76,196.67,40.02176973]
[1735165847245,10.7873654,196.76,196.69,30.0]
[1735165847454,0.76559567,196.76,196.69,30.0]
[1735165848030,11.64876973,196.77,196.69,30.0]
[1735165848254,0.76559567,196.79,196.72,30.0]
[1735165848427,1.6121,196.82,196.75,30.0]
[1735165848746,10.02176973,196.83,196.75,30.0]
[1735165848947,10.02176973,196.83,196.77,30.0]
[1735165849151,10.02176973,196.83,196.7,7.37580347]
[1735165849152,10.02176973,196.86,196.79,30.0]
[1735165849853,10.02176973,196.87,196.79,30.0]
[1735165850062,0.76559567,196.86,196.79,30.0]
[1735165850454,10.02176973,196.87,196.81,30.0]
[1735165851257,2.37769567,196.92,196.83,40.02176973]
[1735165851559,0.76559567,196.91,196.83,40.02176973]
[1735165851759,10.7873654,196.91,196.83,40.02176973]
[1735165852155,0.76559567,196.91,196.83,40.02176973]
[1735165852544,10.7873654,196.91,196.83,40.02176973]
[1735165853834,1.6121,196.92,196.87,30.0]
[1735165854258,6.2974,196.94,196.87,30.0]
[1735165854445,16.31916973,196.94,196.87,30.0]
[1735165854644,10.02176973,196.94,196.87,30.0]
[1735165854835,10.02176973,196.9,196.83,30.0]
[1735165855029,7.52176973,196.9,196.83,30.0]
[1735165855435,0.76559567,196.89,196.83,30.0]
[1735165855654,7.52176973,196.9,196.83,30.0]
[1735165855847,0.76559567,196.89,196.83,30.0]
[1735165856051,7.52176973,196.9,196.83,30.0]
[1735165860056,7.52176973,196.9,196.79,6.6135]
[1735165860057,0.76559567,196.96,196.86,10.02176973]
[1735165860379,10.02176973,196.95,196.87,30.0]
[1735165860744,2.37769567,196.97,196.9,30.0]
[1735165861055,11.63386973,196.97,196.9,30.0]
[1735165861254,10.02176973,196.97,196.92,30.0]
[1735165861477,10.02176973,196.97,196.89,30.0]
[1735165861779,10.02176973,196.97,196.92,30.0]
[1735165861953,10.02176973,196.97,196.9,30.0]
[1735165862573,0.76559567,196.96,196.88,40.02176973]
[1735165864485,10.02176973,196.97,196.88,40.02176973]
[1735165865891,0.76559567,197.0,196.88,30.0]
[1735165866099,23.776884,196.99,196.88,30.0]
[1735165866387,0.76559567,196.98,196.88,30.0]
[1735165866793,0.76559567,196.98,196.9,30.0]
[1735165868671,0.76559567,197.0,196.92,30.0]
[1735165870593,1.6624,197.02,196.92,30.0]
[1735165870594,24.54247967,197.01,196.92,30.0]
[1735165871594,0.76559567,197.01,196.92,30.0]
[1735165871975,0.76559567,197.01,196.89,0.76157176]
[1735165871976,0.76559567,197.01,196.94,30.0]
[1735165872998,0.76559567,197.02,196.94,30.0]
[1735165873393,0.76559567,197.02,196.96,30.0]
[1735165873603,0.76559567,197.05,196.96,30.0]
[1735165875188,0.76559567,197.05,196.99,30.0]
[1735165875502,1.623,197.07,197.01,30.0]
[1735165875873,1.623,197.07,196.99,50.0]
[1735165877075,1.623,197.07,197.02,30.0]
[1735165881590,1.623,197.07,197.04,30.0]
[1735165884315,7.41939567,197.11,197.04,30.0]
[1735165884523,6.6538,197.11,197.04,30.0]
[1735165884819,7.41939567,197.11,197.04,30.0]
[1735165885177,1.6509,197.12,197.04,30.0]
[1735165885511,6.2825,197.15,197.07,30.0]
[1735165886001,6.2825,197.15,197.02,2.36563432]
[1735165886002,6.2825,197.15,197.09,30.0]
[1735165889430,1.6509,197.16,197.09,30.0]
[1735165893133,0.76559567,197.19,197.11,30.0]
[1735165893311,20.0,197.21,197.11,30.0]
[1735165893509,0.76559567,197.2,197.11,30.0]
[1735165893711,24.66796967,197.22,197.11,30.0]
[1735165895453,0.76559567,197.22,197.11,30.0]
[1735165896537,0.76559567,197.22,197.14,30.0]
[1735165899361,2.34789567,197.23,197.16,30.0]
[1735165899532,0.76559567,197.23,197.16,30.0]
[1735165899858,7.21319567,197.27,197.16,30.0]
[1735165900054,7.21319567,197.27,197.18,30.0]
[1735165901837,7.21319567,197.27,197.2,30.0]
[1735165902240,7.21319567,197.27,197.18,30.0]
[1735165902452,7.21319567,197.27,197.2,30.0]
[1735165904062,7.21319567,197.27,197.18,30.0]
[1735165904666,9.88459385,197.23,197.18,30.0]
[1735165906566,7.21319567,197.27,197.18,30.0]
[1735165906868,9.88459385,197.26,197.18,39.88459385]
[1735165907160,7.21319567,197.27,197.21,30.0]
[1735165907349,6.4476,197.27,197.19,30.0]
[1735165907671,9.88459385,197.26,197.19,30.0]
[1735165908548,10.65018952,197.26,197.19,30.0]
[1735165908774,9.88459385,197.26,197.19,30.0]
[1735165908942,10.65018952,197.26,197.19,30.0]
[1735165911586,9.88459385,197.26,197.19,30.0]
[1735165912780,10.65018952,197.26,197.19,30.0]
[1735165913084,9.88459385,197.26,197.19,30.0]
[1735165913488,10.65018952,197.26,197.19,30.0]
[1735165913689,9.88459385,197.26,197.19,30.0]
[1735165919890,6.4476,197.27,197.22,30.0]
[1735165920411,1.5823,197.28,197.22,30.0]
[1735165920784,9.88459385,197.29,197.22,30.0]
[1735165920987,9.88459385,197.29,197.24,30.0]
[1735165922097,9.88459385,197.29,197.22,30.0]
[1735165923498,9.88459385,197.27,197.22,30.0]
[1735165928923,9.88459385,197.27,197.2,30.76035701]
[1735165929125,9.88459385,197.25,197.18,30.0]
[1735165929919,9.88459385,197.21,197.16,30.0]
[1735165930128,9.88459385,197.19,197.14,30.0]
[1735165930433,9.88459385,197.16,197.12,30.0]
[1735165930722,9.88459385,197.16,197.1,30.0]
[1735165932423,9.88459385,197.15,197.08,30.76082812]
[1735165932662,9.88459385,197.15,197.08,30.0]
[1735165932865,9.88459385,197.13,197.08,30.0]
[1735165935275,9.88459385,197.13,197.05,30.0]
[1735165935436,9.88459385,197.09,197.05,30.0]
[1735165935768,9.88459385,197.09,197.03,30.0]
[1735165935941,9.88459385,197.07,197.01,30.0]
[1735165936146,9.88459385,197.05,197.01,30.0]
[1735165936537,9.88459385,197.06,197.01,30.0]
[1735165936967,9.88459385,197.05,196.98,30.76109034]
[1735165937271,9.88459385,197.02,196.96,30.0]
[1735165937833,9.88459385,197.01,196.96,30.0]
[1735165938049,9.88459385,197.0,196.96,30.0]
[1735165939469,1.5161,197.02,196.94,30.0]
[1735165939470,9.88459385,196.99,196.94,30.0]
[1735165939770,9.88459385,196.99,196.92,39.88459385]
[1735165940649,9.88459385,196.99,196.94,30.0]
[1735165942575,9.88459385,197.01,196.94,30.0]
[1735165942752,10.65018952,197.0,196.94,30.0]
[1735165942951,8.0606,197.02,196.94,30.0]
[1735165943162,10.65018952,197.01,196.94,30.0]
[1735165945566,0.76559567,197.01,196.94,30.0]
[1735165945866,10.65018952,197.01,196.94,30.0]
[1735165947841,10.65018952,197.01,196.94,39.88459385]
[1735165950956,0.76559567,197.01,196.94,39.88459385]
[1735165954052,11.40069385,197.02,196.94,39.88459385]
[1735165954376,1.5161,197.02,196.96,9.88459385]
[1735165954579,0.76559567,197.06,196.98,39.88459385]
[1735165954759,10.65018952,197.06,196.98,39.88459385]
[1735165955289,0.76559567,197.06,196.98,39.88459385]
[1735165955489,9.88459385,197.05,196.98,39.88459385]
[1735165955786,0.76559567,197.04,196.98,39.88459385]
[1735165959090,0.76559567,197.06,197.0,30.0]
[1735165959401,1.6631,197.07,197.02,9.88459385]
[1735165959699,0.76559567,197.09,197.02,39.88459385]
[1735165959860,0.76559567,197.1,197.02,39.88459385]
[1735165960057,0.76559567,197.11,197.02,39.88459385]
[1735165960484,0.76559567,197.11,197.04,9.88459385]
[1735165960686,7.41399567,197.12,197.04,39.88459385]
[1735165960868,0.76559567,197.12,197.04,39.88459385]
[1735165964780,1.6631,197.13,197.06,30.0]
[1735165964781,11.54769385,197.13,197.06,30.0]
[1735165965807,11.54769385,197.13,197.06,39.88459385]
[1735165966202,0.76559567,197.16,197.06,39.88459385]
[1735165966403,9.88459385,197.14,197.06,39.88459385]
[1735165966705,24.54247967,197.15,197.06,39.88459385]
[1735165966879,9.88459385,197.14,197.06,39.88459385]
[1735165967510,10.65018952,197.14,197.06,39.88459385]
[1735165968174,10.65018952,197.14,197.06,30.0]
[1735165970919,9.88459385,197.12,197.06,30.0]
[1735165971223,10.65018952,197.14,197.06,30.0]
[1735165971585,9.88459385,197.1,197.03,1.6027]
[1735165972307,23.776884,197.13,197.04,30.0]
[1735165972596,10.65018952,197.12,197.04,30.0]
[1735165973003,23.776884,197.15,197.07,30.0]
[1735165973220,0.76559567,197.14,197.07,30.0]
[1735165973902,9.88459385,197.17,197.1,30.0]
[1735165974420,0.76559567,197.19,197.1,30.0]
[1735165974631,9.88459385,197.17,197.1,30.0]
[1735165975216,2.36159567,197.21,197.14,30.0]
[1735165975399,9.88459385,197.19,197.14,30.0]
[1735165975910,0.76559567,197.23,197.14,30.0]
[1735165976119,9.88459385,197.2,197.14,30.0]
[1735165976999,9.88459385,197.21,197.14,30.0]
[1735165977401,7.8326,197.27,197.18,30.0]
[1735165977603,9.88459385,197.24,197.18,30.0]
[1735165978018,2.36159567,197.27,197.18,30.0]
[1735165978223,9.88459385,197.25,197.18,30.0]
[1735165978733,2.36159567,197.27,197.18,30.0]
[1735165978942,9.88459385,197.25,197.18,30.0]
[1735165979343,1.596,197.27,197.18,30.0]
[1735165979545,9.88459385,197.25,197.2,30.0]
[1735165980134,9.88459385,197.26,197.2,30.0]
[1735165980342,9.88459385,197.24,197.18,31.6262]
[1735165980648,12.671,197.3,197.18,31.6262]
[1735165980836,9.88459385,197.25,197.18,31.6262]
[1735165981344,9.88459385,197.25,197.2,30.0]
[1735165981540,9.88459385,197.27,197.2,30.0]
[1735165982319,9.88459385,197.27,197.18,41.51079385]
[1735165982526,9.88459385,197.27,197.2,30.0]
[1735165984056,23.776884,197.3,197.22,30.0]
[1735165984227,9.88459385,197.28,197.22,30.0]
[1735165986261,23.776884,197.31,197.22,30.0]
[1735165986442,9.88459385,197.27,197.22,30.0]
[1735165990462,9.88459385,197.25,197.18,1.6262]
[1735165990657,0.76559567,197.24,197.16,30.0]
[1735165991163,9.88459385,197.23,197.16,30.0]
[1735165991367,9.88459385,197.21,197.16,30.0]